[Event "Live Chess"]
[Site "Chess.com"]
[Date "2024.06.02"]
[Round "-"]
[White "stevochess11"]
[Black "DoctorMantisTobogganMD"]
[Result "0-1"]
[WhiteElo "1716"]
[BlackElo "2180"]
[TimeControl "300"]
[EndTime "16:17:53 PDT"]
[Termination "DoctorMantisTobogganMD won on time"]

1. d4 {[%clk 0:04:57.9]} 1... Nf6 {[%clk 0:04:58.8]} 2. Nf3 {[%clk 0:04:56.8]}
2... c6 {[%clk 0:04:57.8]} 3. e3 {[%clk 0:04:48.9]} 3... d5 {[%clk 0:04:57.7]}
4. c4 {[%clk 0:04:47.2]} 4... Bg4 {[%clk 0:04:56.7]} 5. cxd5 {[%clk 0:04:45.8]}
5... cxd5 {[%clk 0:04:56.6]} 6. Qb3 {[%clk 0:04:44.8]} 6... Bxf3 {[%clk
0:04:54.9]} 7. gxf3 {[%clk 0:04:37.5]} 7... Nbd7 {[%clk 0:04:52.5]} 8. Nc3
{[%clk 0:04:24.8]} 8... e6 {[%clk 0:04:50.9]} 9. Bd3 {[%clk 0:04:20]} 9... Bd6
{[%clk 0:04:48.1]} 10. e4 {[%clk 0:04:15.8]} 10... dxe4 {[%clk 0:04:27.4]} 11.
fxe4 {[%clk 0:04:13.1]} 11... Be7 {[%clk 0:04:26.9]} 12. Rg1 {[%clk 0:04:03.4]}
12... g6 {[%clk 0:04:24.9]} 13. Bh6 {[%clk 0:04:00.5]} 13... Qb6 {[%clk
0:04:13.9]} 14. Qxb6 {[%clk 0:03:47.5]} 14... Nxb6 {[%clk 0:04:12.4]} 15. Nb5
{[%clk 0:03:38.9]} 15... O-O-O {[%clk 0:03:53.4]} 16. Nxa7+ {[%clk 0:03:14.6]}
16... Kb8 {[%clk 0:03:42.6]} 17. Nb5 {[%clk 0:03:08]} 17... e5 {[%clk
0:03:33.3]} 18. d5 {[%clk 0:03:03.2]} 18... Nfd7 {[%clk 0:03:13.7]} 19. Be3
{[%clk 0:02:46.8]} 19... Bc5 {[%clk 0:03:10.3]} 20. Bxc5 {[%clk 0:02:37.1]}
20... Nxc5 {[%clk 0:03:10.2]} 21. O-O-O {[%clk 0:02:34]} 21... Nxd3+ {[%clk
0:02:50.6]} 22. Rxd3 {[%clk 0:02:31.5]} 22... Nc4 {[%clk 0:02:50.1]} 23. Rc3
{[%clk 0:02:26.1]} 23... Nd6 {[%clk 0:02:48.5]} 24. Nxd6 {[%clk 0:02:14.1]}
24... Rxd6 {[%clk 0:02:48.4]} 25. Kd2 {[%clk 0:02:04.9]} 25... f5 {[%clk
0:02:44.9]} 26. f3 {[%clk 0:01:59.8]} 26... fxe4 {[%clk 0:02:39.6]} 27. fxe4
{[%clk 0:01:58.1]} 27... Rf8 {[%clk 0:02:39.1]} 28. Ke2 {[%clk 0:01:51.8]} 28...
Rdf6 {[%clk 0:02:37.5]} 29. Rg2 {[%clk 0:01:44.5]} 29... Rf4 {[%clk 0:02:31.8]}
30. Re3 {[%clk 0:01:31.2]} 30... Rf1 {[%clk 0:02:26.4]} 31. Rh3 {[%clk
0:01:27.6]} 31... Rb1 {[%clk 0:02:14.6]} 32. Kd3 {[%clk 0:01:25]} 32... Rf7
{[%clk 0:02:10.9]} 33. Rhg3 {[%clk 0:01:09.9]} 33... Rd1+ {[%clk 0:02:07.8]} 34.
Kc2 {[%clk 0:01:05.4]} 34... Rd4 {[%clk 0:02:06]} 35. Re3 {[%clk 0:00:59.7]}
35... Rf4 {[%clk 0:02:04.1]} 36. Rd2 {[%clk 0:00:46.7]} 36... Rdxe4 {[%clk
0:02:01.8]} 37. Rxe4 {[%clk 0:00:45.7]} 37... Rxe4 {[%clk 0:02:01.7]} 38. d6
{[%clk 0:00:43.5]} 38... Kc8 {[%clk 0:02:00.3]} 39. d7+ {[%clk 0:00:40.1]} 39...
Kd8 {[%clk 0:01:59.3]} 40. Rf2 {[%clk 0:00:36.2]} 40... Rf4 {[%clk 0:01:52]} 41.
Re2 {[%clk 0:00:34.9]} 41... Kxd7 {[%clk 0:01:49]} 42. Rxe5 {[%clk 0:00:33.7]}
42... Rf2+ {[%clk 0:01:47.9]} 43. Kb3 {[%clk 0:00:31.3]} 43... Rxh2 {[%clk
0:01:46.2]} 44. Rd5+ {[%clk 0:00:26]} 44... Kc6 {[%clk 0:01:44.7]} 45. Re5
{[%clk 0:00:23]} 45... Rg2 {[%clk 0:01:38.5]} 46. Re6+ {[%clk 0:00:21.6]} 46...
Kc5 {[%clk 0:01:32.3]} 47. Ka4 {[%clk 0:00:19.3]} 47... Rxb2 {[%clk 0:01:28.6]}
48. a3 {[%clk 0:00:18.3]} 48... b5+ {[%clk 0:01:24.9]} 49. Ka5 {[%clk
0:00:16.5]} 49... Ra2 {[%clk 0:01:24.1]} 50. Re3 {[%clk 0:00:12.3]} 50... b4
{[%clk 0:01:10]} 51. a4 {[%clk 0:00:09.6]} 51... h5 {[%clk 0:01:06.5]} 52. Re5+
{[%clk 0:00:08.4]} 52... Kd4 {[%clk 0:01:04.7]} 53. Rg5 {[%clk 0:00:06.9]} 53...
b3 {[%clk 0:01:01.2]} 54. Rxg6 {[%clk 0:00:05.6]} 54... b2 {[%clk 0:01:00.1]}
55. Rd6+ {[%clk 0:00:03.1]} 55... Kc5 {[%clk 0:00:57.9]} 56. Rd1 {[%clk
0:00:01.8]} 56... Ra1 {[%clk 0:00:56.3]} 0-1

[Event "Live Chess"]
[Site "Chess.com"]
[Date "2024.06.02"]
[Round "-"]
[White "StoreySniper"]
[Black "Outspanner"]
[Result "1-0"]
[WhiteElo "2529"]
[BlackElo "1509"]
[TimeControl "300"]
[EndTime "16:18:04 PDT"]
[Termination "StoreySniper won by resignation"]

1. e4 {[%clk 0:04:58]} 1... c5 {[%clk 0:04:56.9]} 2. Nf3 {[%clk 0:04:56]} 2...
e6 {[%clk 0:04:56.5]} 3. d3 {[%clk 0:04:54.5]} 3... d5 {[%clk 0:04:46.8]} 4.
Nbd2 {[%clk 0:04:53.8]} 4... dxe4 {[%clk 0:04:27.6]} 5. dxe4 {[%clk 0:04:51.5]}
5... Nc6 {[%clk 0:04:21.8]} 6. Bb5 {[%clk 0:04:50]} 6... Bd7 {[%clk 0:04:20.3]}
7. O-O {[%clk 0:04:48.6]} 7... Be7 {[%clk 0:04:11.1]} 8. Qe2 {[%clk 0:04:43.2]}
8... Nf6 {[%clk 0:04:08.5]} 9. Rd1 {[%clk 0:04:41.7]} 9... Qc7 {[%clk
0:03:54.6]} 10. e5 {[%clk 0:04:32.9]} 10... Nd5 {[%clk 0:03:51.5]} 11. Nc4
{[%clk 0:04:29.7]} 11... a6 {[%clk 0:03:45]} 12. Bxc6 {[%clk 0:04:23.4]} 12...
Bxc6 {[%clk 0:03:42.6]} 13. Nd6+ {[%clk 0:04:22.2]} 13... Bxd6 {[%clk
0:03:28.3]} 14. exd6 {[%clk 0:04:22.1]} 14... Qxd6 {[%clk 0:03:27.6]} 15. c4
{[%clk 0:04:18.2]} 15... Nf4 {[%clk 0:03:26.5]} 16. Bxf4 {[%clk 0:03:36.8]} 1-0

[Event "Live Chess"]
[Site "Chess.com"]
[Date "2024.06.02"]
[Round "-"]
[White "NeilDruggan73"]
[Black "MaksymYurii"]
[Result "1-0"]
[WhiteElo "1740"]
[BlackElo "952"]
[TimeControl "300"]
[EndTime "16:18:06 PDT"]
[Termination "NeilDruggan73 won by checkmate"]

1. d4 {[%clk 0:04:56.4]} 1... d5 {[%clk 0:04:58.8]} 2. Bg5 {[%clk 0:04:54.4]}
2... Nf6 {[%clk 0:04:53.8]} 3. Bxf6 {[%clk 0:04:52.9]} 3... exf6 {[%clk
0:04:52.9]} 4. e3 {[%clk 0:04:52.6]} 4... Bd6 {[%clk 0:04:51.2]} 5. g3 {[%clk
0:04:51.5]} 5... O-O {[%clk 0:04:49.1]} 6. Bg2 {[%clk 0:04:51]} 6... c6 {[%clk
0:04:43.5]} 7. Nd2 {[%clk 0:04:47.8]} 7... Nd7 {[%clk 0:04:41.3]} 8. c3 {[%clk
0:04:44.8]} 8... f5 {[%clk 0:04:39.3]} 9. Qc2 {[%clk 0:04:43.4]} 9... Nf6 {[%clk
0:04:36.5]} 10. O-O-O {[%clk 0:04:40.4]} 10... a5 {[%clk 0:04:25.9]} 11. Ngf3
{[%clk 0:04:36.3]} 11... a4 {[%clk 0:04:23.9]} 12. a3 {[%clk 0:04:34.1]} 12...
b5 {[%clk 0:04:20.5]} 13. Ne5 {[%clk 0:04:30.7]} 13... c5 {[%clk 0:04:03.6]} 14.
f4 {[%clk 0:04:18.5]} 14... cxd4 {[%clk 0:04:00]} 15. exd4 {[%clk 0:04:16]}
15... Bb7 {[%clk 0:03:47.8]} 16. Qxf5 {[%clk 0:04:12.9]} 16... g6 {[%clk
0:03:08.2]} 17. Qg5 {[%clk 0:04:02.7]} 17... Ne4 {[%clk 0:02:58.3]} 18. Nxe4
{[%clk 0:03:57.3]} 18... dxe4 {[%clk 0:02:57.1]} 19. h4 {[%clk 0:03:52.5]} 19...
f6 {[%clk 0:02:33.7]} 20. Qh6 {[%clk 0:03:51.3]} 20... fxe5 {[%clk 0:02:23.7]}
21. fxe5 {[%clk 0:03:49.6]} 21... Rf2 {[%clk 0:02:09.5]} 22. h5 {[%clk
0:03:42.3]} 22... Bf8 {[%clk 0:02:03.6]} 23. Qe3 {[%clk 0:03:39.4]} 23... Rxg2
{[%clk 0:01:51.6]} 24. hxg6 {[%clk 0:03:33.5]} 24... h6 {[%clk 0:00:45.3]} 25.
Rxh6 {[%clk 0:03:29.3]} 25... Bxh6 {[%clk 0:00:43.9]} 26. Qxh6 {[%clk
0:03:28.5]} 26... Rxg3 {[%clk 0:00:38.1]} 27. Qh7+ {[%clk 0:03:24.5]} 27... Kf8
{[%clk 0:00:34.7]} 28. Qf7# {[%clk 0:03:24]} 1-0

[Event "Live Chess"]
[Site "Chess.com"]
[Date "2024.06.02"]
[Round "-"]
[White "KeithArkell"]
[Black "GEMdzq"]
[Result "0-1"]
[WhiteElo "2405"]
[BlackElo "2311"]
[TimeControl "300"]
[EndTime "16:18:19 PDT"]
[Termination "GEMdzq won by checkmate"]

1. d4 {[%clk 0:04:57.1]} 1... Nf6 {[%clk 0:04:58.8]} 2. Nf3 {[%clk 0:04:56.5]}
2... e6 {[%clk 0:04:57.7]} 3. c4 {[%clk 0:04:55.8]} 3... c5 {[%clk 0:04:57.1]}
4. d5 {[%clk 0:04:54.9]} 4... exd5 {[%clk 0:04:56.8]} 5. cxd5 {[%clk 0:04:54.5]}
5... d6 {[%clk 0:04:56.5]} 6. Nc3 {[%clk 0:04:54]} 6... g6 {[%clk 0:04:56.1]} 7.
Nd2 {[%clk 0:04:51.7]} 7... Nbd7 {[%clk 0:04:54.2]} 8. Nc4 {[%clk 0:04:50.6]}
8... Nb6 {[%clk 0:04:52.1]} 9. e4 {[%clk 0:04:47.8]} 9... Nxc4 {[%clk
0:04:49.8]} 10. Bxc4 {[%clk 0:04:46.9]} 10... Bg7 {[%clk 0:04:48]} 11. O-O
{[%clk 0:04:45.9]} 11... O-O {[%clk 0:04:46.6]} 12. Bf4 {[%clk 0:04:42.6]} 12...
a6 {[%clk 0:04:39.9]} 13. a4 {[%clk 0:04:24]} 13... Re8 {[%clk 0:04:35.1]} 14.
Re1 {[%clk 0:04:21.4]} 14... Bg4 {[%clk 0:04:25.1]} 15. f3 {[%clk 0:04:17.3]}
15... Nh5 {[%clk 0:04:22.5]} 16. Be3 {[%clk 0:04:14]} 16... Bd7 {[%clk
0:04:15.9]} 17. Qd2 {[%clk 0:04:12.7]} 17... Rb8 {[%clk 0:04:12.6]} 18. a5
{[%clk 0:04:09.4]} 18... b5 {[%clk 0:03:36.7]} 19. axb6 {[%clk 0:04:09.3]} 19...
Qxb6 {[%clk 0:03:35.2]} 20. Reb1 {[%clk 0:04:05.3]} 20... Bb5 {[%clk 0:03:29.9]}
21. Bxb5 {[%clk 0:04:01.6]} 21... axb5 {[%clk 0:03:29.6]} 22. b4 {[%clk
0:03:59.9]} 22... Qc7 {[%clk 0:03:12.4]} 23. bxc5 {[%clk 0:03:56.8]} 23... b4
{[%clk 0:03:11.4]} 24. Na4 {[%clk 0:03:34]} 24... Bxa1 {[%clk 0:02:57.6]} 25.
Rxa1 {[%clk 0:03:33.9]} 25... dxc5 {[%clk 0:02:50.9]} 26. Nxc5 {[%clk 0:03:33]}
26... Rb5 {[%clk 0:02:35.7]} 27. Rc1 {[%clk 0:03:18]} 27... Qb8 {[%clk
0:01:47.8]} 28. d6 {[%clk 0:02:55.1]} 28... b3 {[%clk 0:01:42.2]} 29. d7 {[%clk
0:02:52.7]} 29... Rd8 {[%clk 0:01:41.6]} 30. Qb2 {[%clk 0:02:51.9]} 30... Rxc5
{[%clk 0:01:35.7]} 31. Bxc5 {[%clk 0:02:47.4]} 31... Rxd7 {[%clk 0:01:32.9]} 32.
Bd4 {[%clk 0:02:23.8]} 32... Nf4 {[%clk 0:01:21.5]} 33. Qxb3 {[%clk 0:02:12.1]}
33... Qd8 {[%clk 0:01:00.4]} 34. Bb6 {[%clk 0:02:05.3]} 34... Ne2+ {[%clk
0:00:49.3]} 35. Kf2 {[%clk 0:01:59.7]} 35... Nxc1 {[%clk 0:00:48.7]} 36. Qb5
{[%clk 0:01:50.2]} 36... Qh4+ {[%clk 0:00:45.7]} 37. Ke3 {[%clk 0:01:46.8]}
37... Qe1+ {[%clk 0:00:42.7]} 38. Kf4 {[%clk 0:01:45.8]} 38... Nd3+ {[%clk
0:00:41]} 39. Kg4 {[%clk 0:01:37.9]} 39... h5+ {[%clk 0:00:39.6]} 40. Kg5 {[%clk
0:01:37]} 40... Qd2+ {[%clk 0:00:34.7]} 41. Kh4 {[%clk 0:01:30.3]} 41... Qf4+
{[%clk 0:00:30.5]} 42. g4 {[%clk 0:01:29.4]} 42... Qxh2+ {[%clk 0:00:28]} 43.
Kg5 {[%clk 0:01:28.9]} 43... Qf4+ {[%clk 0:00:26.9]} 44. Kh4 {[%clk 0:01:26.5]}
44... Qf6+ {[%clk 0:00:24.1]} 45. Kg3 {[%clk 0:01:25.2]} 45... Qe5+ {[%clk
0:00:22.3]} 46. Qxe5 {[%clk 0:01:21.1]} 46... Nxe5 {[%clk 0:00:22.2]} 47. gxh5
{[%clk 0:01:19.1]} 47... gxh5 {[%clk 0:00:21.2]} 48. f4 {[%clk 0:01:16.7]} 48...
Ng6 {[%clk 0:00:19.9]} 49. f5 {[%clk 0:01:15.6]} 49... Ne5 {[%clk 0:00:19.2]}
50. Kf4 {[%clk 0:01:14]} 50... f6 {[%clk 0:00:18.6]} 51. Bg1 {[%clk 0:01:08.3]}
51... Kf7 {[%clk 0:00:17.6]} 52. Kg3 {[%clk 0:01:05.7]} 52... Rd1 {[%clk
0:00:17.5]} 53. Bc5 {[%clk 0:01:03.1]} 53... Rd3+ {[%clk 0:00:16.4]} 54. Kh4
{[%clk 0:01:02.4]} 54... Rc3 {[%clk 0:00:15.1]} 55. Bb6 {[%clk 0:00:57.7]} 55...
Rc4 {[%clk 0:00:15]} 56. Kxh5 {[%clk 0:00:57.3]} 56... Rxe4 {[%clk 0:00:14.3]}
57. Bf2 {[%clk 0:00:51.9]} 57... Rf4 {[%clk 0:00:13.9]} 58. Be3 {[%clk 0:00:51]}
58... Rxf5+ {[%clk 0:00:13.6]} 59. Kh4 {[%clk 0:00:50.7]} 59... Ke6 {[%clk
0:00:13.2]} 60. Bb6 {[%clk 0:00:47.9]} 60... Rf3 {[%clk 0:00:13.1]} 61. Bc5
{[%clk 0:00:46.1]} 61... Rb3 {[%clk 0:00:13]} 62. Ba7 {[%clk 0:00:44]} 62... f5
{[%clk 0:00:12.9]} 63. Kg5 {[%clk 0:00:42.7]} 63... Rg3+ {[%clk 0:00:11.4]} 64.
Kf4 {[%clk 0:00:42]} 64... Rg8 {[%clk 0:00:11]} 65. Bb6 {[%clk 0:00:37.8]} 65...
Rg4+ {[%clk 0:00:10.9]} 66. Ke3 {[%clk 0:00:37]} 66... Nc4+ {[%clk 0:00:09.8]}
67. Kf3 {[%clk 0:00:36.6]} 67... Nxb6 {[%clk 0:00:09.7]} 68. Ke3 {[%clk
0:00:36.3]} 68... Nd7 {[%clk 0:00:09.1]} 69. Kf3 {[%clk 0:00:36.2]} 69... Ke5
{[%clk 0:00:08.8]} 70. Ke3 {[%clk 0:00:35.9]} 70... f4+ {[%clk 0:00:08.4]} 71.
Kf3 {[%clk 0:00:35.8]} 71... Kf5 {[%clk 0:00:07.9]} 72. Kf2 {[%clk 0:00:34.9]}
72... Ne5 {[%clk 0:00:07.8]} 73. Ke2 {[%clk 0:00:34.8]} 73... Ke4 {[%clk
0:00:07.2]} 74. Kf2 {[%clk 0:00:34]} 74... f3 {[%clk 0:00:06.6]} 75. Kf1 {[%clk
0:00:29.9]} 75... Kf4 {[%clk 0:00:06.5]} 76. Ke1 {[%clk 0:00:29.1]} 76... Rg2
{[%clk 0:00:06.2]} 77. Kf1 {[%clk 0:00:27.8]} 77... Ke3 {[%clk 0:00:06.1]} 78.
Ke1 {[%clk 0:00:27.1]} 78... Rg1# {[%clk 0:00:05.6]} 0-1

[Event "Live Chess"]
[Site "Chess.com"]
[Date "2024.06.02"]
[Round "-"]
[White "toog"]
[Black "koekoekoe"]
[Result "1-0"]
[WhiteElo "2603"]
[BlackElo "1965"]
[TimeControl "300"]
[EndTime "16:18:40 PDT"]
[Termination "toog won by checkmate"]

1. Nf3 {[%clk 0:04:55.7]} 1... d5 {[%clk 0:04:59.9]} 2. g3 {[%clk 0:04:54.4]}
2... Nf6 {[%clk 0:04:59.5]} 3. Bg2 {[%clk 0:04:53.8]} 3... Bf5 {[%clk 0:04:59]}
4. O-O {[%clk 0:04:53.4]} 4... e6 {[%clk 0:04:58.6]} 5. b3 {[%clk 0:04:52.1]}
5... c6 {[%clk 0:04:58.2]} 6. Bb2 {[%clk 0:04:51.6]} 6... Bd6 {[%clk 0:04:56]}
7. Ne5 {[%clk 0:04:49.2]} 7... O-O {[%clk 0:04:54]} 8. d3 {[%clk 0:04:47.3]}
8... Nbd7 {[%clk 0:04:53.2]} 9. Nxd7 {[%clk 0:04:46]} 9... Qxd7 {[%clk
0:04:51.7]} 10. Bxf6 {[%clk 0:04:43.7]} 10... gxf6 {[%clk 0:04:50.9]} 11. e4
{[%clk 0:04:43.1]} 11... Bg6 {[%clk 0:04:47.3]} 12. Nd2 {[%clk 0:04:39.1]} 12...
Be5 {[%clk 0:04:42.4]} 13. Rb1 {[%clk 0:04:37.6]} 13... Rfd8 {[%clk 0:04:37.4]}
14. Qe2 {[%clk 0:04:35.5]} 14... Rac8 {[%clk 0:04:25.9]} 15. h4 {[%clk 0:04:33]}
15... h6 {[%clk 0:04:21.2]} 16. Nf3 {[%clk 0:04:21.9]} 16... dxe4 {[%clk
0:04:13.2]} 17. Nxe5 {[%clk 0:04:20.7]} 17... exd3 {[%clk 0:03:46]} 18. Nxd3
{[%clk 0:04:20.6]} 18... Bxd3 {[%clk 0:03:39.1]} 19. cxd3 {[%clk 0:04:18.9]}
19... Qxd3 {[%clk 0:03:38.6]} 20. Qxd3 {[%clk 0:04:18.1]} 20... Rxd3 {[%clk
0:03:38.5]} 21. Rfd1 {[%clk 0:04:17.2]} 21... Rcd8 {[%clk 0:03:37.3]} 22. Rxd3
{[%clk 0:04:15.9]} 22... Rxd3 {[%clk 0:03:35.5]} 23. Rb2 {[%clk 0:04:14.7]}
23... e5 {[%clk 0:03:25.5]} 24. Bf1 {[%clk 0:04:12.7]} 24... Rd1 {[%clk
0:03:24.3]} 25. Kg2 {[%clk 0:04:10.8]} 25... f5 {[%clk 0:03:22.3]} 26. Be2
{[%clk 0:04:09.6]} 26... Rd4 {[%clk 0:03:19.8]} 27. Rc2 {[%clk 0:04:04.3]} 27...
f6 {[%clk 0:03:15.7]} 28. Bc4+ {[%clk 0:04:01.5]} 28... Kf8 {[%clk 0:03:13.4]}
29. Be6 {[%clk 0:04:01.4]} 29... f4 {[%clk 0:03:11.2]} 30. Bf5 {[%clk
0:03:57.2]} 30... fxg3 {[%clk 0:03:08.4]} 31. Kxg3 {[%clk 0:03:56.9]} 31... Ke7
{[%clk 0:03:06.4]} 32. f3 {[%clk 0:03:54.2]} 32... Kd6 {[%clk 0:03:05]} 33. Be4
{[%clk 0:03:52.5]} 33... Rd1 {[%clk 0:03:03.7]} 34. Kg4 {[%clk 0:03:49.9]} 34...
Ke6 {[%clk 0:02:53.1]} 35. Bf5+ {[%clk 0:03:48.2]} 35... Kf7 {[%clk 0:02:51.8]}
36. Kh5 {[%clk 0:03:47.2]} 36... Rh1 {[%clk 0:02:48.2]} 37. Rd2 {[%clk
0:03:44.8]} 37... Ke7 {[%clk 0:02:44.9]} 38. Rd7+ {[%clk 0:03:42.7]} 38... Ke8
{[%clk 0:02:44.5]} 39. Rxb7 {[%clk 0:03:42.1]} 39... Rf1 {[%clk 0:02:42.1]} 40.
Kg6 {[%clk 0:03:39.6]} 40... Rxf3 {[%clk 0:02:40]} 41. Kxf6 {[%clk 0:03:39.1]}
41... e4 {[%clk 0:02:36]} 42. Rb8# {[%clk 0:03:38.1]} 1-0

[Event "Live Chess"]
[Site "Chess.com"]
[Date "2024.06.02"]
[Round "-"]
[White "Duke_of_Bebington"]
[Black "CheckThis4"]
[Result "0-1"]
[WhiteElo "1645"]
[BlackElo "2690"]
[TimeControl "300"]
[EndTime "16:19:04 PDT"]
[Termination "CheckThis4 won by checkmate"]

1. e4 {[%clk 0:04:57.8]} 1... d5 {[%clk 0:04:56.2]} 2. exd5 {[%clk 0:04:56.4]}
2... c6 {[%clk 0:04:55.6]} 3. dxc6 {[%clk 0:04:54.3]} 3... Nxc6 {[%clk
0:04:55.5]} 4. Nf3 {[%clk 0:04:51.6]} 4... e5 {[%clk 0:04:54.4]} 5. d3 {[%clk
0:04:48.6]} 5... Bd6 {[%clk 0:04:52.1]} 6. Nc3 {[%clk 0:04:48.1]} 6... Nge7
{[%clk 0:04:49.7]} 7. Be2 {[%clk 0:04:47.4]} 7... O-O {[%clk 0:04:48.5]} 8. O-O
{[%clk 0:04:46.7]} 8... h6 {[%clk 0:04:37.1]} 9. Ne4 {[%clk 0:04:45.6]} 9... Bc7
{[%clk 0:04:32.7]} 10. Be3 {[%clk 0:04:44.3]} 10... f5 {[%clk 0:04:30.7]} 11.
Nc3 {[%clk 0:04:33.6]} 11... f4 {[%clk 0:04:27.3]} 12. Bc5 {[%clk 0:04:32]}
12... b6 {[%clk 0:04:24.6]} 13. Bxe7 {[%clk 0:04:26.3]} 13... Qxe7 {[%clk
0:04:24.5]} 14. Ne4 {[%clk 0:04:24.8]} 14... Bf5 {[%clk 0:04:17.2]} 15. Nfd2
{[%clk 0:04:18.8]} 15... Rad8 {[%clk 0:04:14.6]} 16. Bf3 {[%clk 0:04:17.5]}
16... Nd4 {[%clk 0:04:12.6]} 17. Re1 {[%clk 0:04:14.1]} 17... g5 {[%clk
0:04:07.7]} 18. h3 {[%clk 0:04:12.3]} 18... Qg7 {[%clk 0:04:00.3]} 19. Nf1
{[%clk 0:04:02.4]} 19... Nxf3+ {[%clk 0:03:51.3]} 20. Qxf3 {[%clk 0:04:00.7]}
20... g4 {[%clk 0:03:50.8]} 21. Qd1 {[%clk 0:03:27.5]} 21... gxh3 {[%clk
0:03:46.8]} 22. g3 {[%clk 0:03:26.6]} 22... Bg4 {[%clk 0:03:30.7]} 23. f3 {[%clk
0:03:18.2]} 23... fxg3 {[%clk 0:03:19.3]} 24. fxg4 {[%clk 0:03:15.5]} 24... g2
{[%clk 0:03:17.8]} 25. Nh2 {[%clk 0:03:05]} 25... b5 {[%clk 0:03:15]} 26. c3
{[%clk 0:02:50]} 26... Bb6+ {[%clk 0:03:11.8]} 27. d4 {[%clk 0:02:44.3]} 27...
exd4 {[%clk 0:03:10.8]} 28. Qb3+ {[%clk 0:02:41.2]} 28... Kh8 {[%clk 0:03:05.8]}
29. Nf3 {[%clk 0:01:41.6]} 29... Rxf3 {[%clk 0:03:00]} 30. Rad1 {[%clk
0:01:29.4]} 30... d3+ {[%clk 0:02:52.2]} 31. Kh2 {[%clk 0:01:27.6]} 31... Bc7+
{[%clk 0:02:44.2]} 32. Kg1 {[%clk 0:01:22.6]} 32... Qxg4 {[%clk 0:02:37]} 33.
Qxb5 {[%clk 0:01:00.7]} 33... h2# {[%clk 0:02:33.2]} 0-1

[Event "Live Chess"]
[Site "Chess.com"]
[Date "2024.06.02"]
[Round "-"]
[White "booktrunk"]
[Black "educatedlad"]
[Result "0-1"]
[WhiteElo "1481"]
[BlackElo "1710"]
[TimeControl "300"]
[EndTime "16:19:21 PDT"]
[Termination "educatedlad won by resignation"]

1. d4 {[%clk 0:04:41.1]} 1... Nf6 {[%clk 0:04:58.5]} 2. Nc3 {[%clk 0:04:37.8]}
2... d5 {[%clk 0:04:56.9]} 3. Bf4 {[%clk 0:04:30.5]} 3... g6 {[%clk 0:04:50.7]}
4. a3 {[%clk 0:04:28.6]} 4... Bg7 {[%clk 0:04:49.1]} 5. Nf3 {[%clk 0:04:25.6]}
5... Nh5 {[%clk 0:04:47.4]} 6. Bg3 {[%clk 0:04:23.1]} 6... Nxg3 {[%clk
0:04:46.4]} 7. fxg3 {[%clk 0:04:21.8]} 7... O-O {[%clk 0:04:44.9]} 8. e3 {[%clk
0:04:20.9]} 8... Bg4 {[%clk 0:04:42.8]} 9. Be2 {[%clk 0:04:19.2]} 9... Nd7
{[%clk 0:04:36.6]} 10. O-O {[%clk 0:04:17.6]} 10... c6 {[%clk 0:04:31]} 11. Kh1
{[%clk 0:04:03]} 11... e5 {[%clk 0:04:08.8]} 12. dxe5 {[%clk 0:03:58.9]} 12...
Nxe5 {[%clk 0:04:04.5]} 13. Nxe5 {[%clk 0:03:57.3]} 13... Bxe2 {[%clk
0:04:02.9]} 14. Qxe2 {[%clk 0:03:51.3]} 14... Bxe5 {[%clk 0:04:01.1]} 15. Rab1
{[%clk 0:03:40.5]} 15... Bxc3 {[%clk 0:03:54.5]} 16. bxc3 {[%clk 0:03:39.1]}
16... Qa5 {[%clk 0:03:54.4]} 17. Rb3 {[%clk 0:03:33.8]} 17... b5 {[%clk
0:03:44.2]} 18. h3 {[%clk 0:03:31.8]} 18... Qc7 {[%clk 0:03:41.3]} 19. Rb4
{[%clk 0:03:28.2]} 19... Qxg3 {[%clk 0:03:38.1]} 20. Rf3 {[%clk 0:03:22.1]}
20... Qd6 {[%clk 0:03:35.5]} 21. Rbf4 {[%clk 0:03:20.9]} 21... Rae8 {[%clk
0:03:31]} 22. Qd3 {[%clk 0:03:19.7]} 22... Qxa3 {[%clk 0:03:28.4]} 23. Qd4
{[%clk 0:03:18.2]} 23... Qc1+ {[%clk 0:03:24.7]} 24. Kh2 {[%clk 0:03:16]} 24...
Qxc2 {[%clk 0:03:22.1]} 25. Qxa7 {[%clk 0:03:13.4]} 25... Qxc3 {[%clk
0:03:18.5]} 26. Rxf7 {[%clk 0:03:11.2]} 26... Qe5+ {[%clk 0:03:15.8]} 27. Kh1
{[%clk 0:03:09.3]} 27... Ra8 {[%clk 0:02:58.4]} 28. Rxf8+ {[%clk 0:03:03.9]}
28... Rxf8 {[%clk 0:02:57.2]} 29. Rxf8+ {[%clk 0:02:56.9]} 29... Kxf8 {[%clk
0:02:55.8]} 30. Qa8+ {[%clk 0:02:56.6]} 30... Kf7 {[%clk 0:02:51.1]} 31. Qxc6
{[%clk 0:02:56.5]} 31... Qxe3 {[%clk 0:02:49.2]} 32. Qxb5 {[%clk 0:02:54.9]}
32... Qc1+ {[%clk 0:02:46.8]} 33. Kh2 {[%clk 0:02:52.1]} 33... Qf4+ {[%clk
0:02:44.8]} 34. Kh1 {[%clk 0:02:51]} 34... d4 {[%clk 0:02:44.2]} 35. Qd7+ {[%clk
0:02:48.8]} 35... Kg8 {[%clk 0:02:40.6]} 36. Kg1 {[%clk 0:02:46.3]} 36... Qe3+
{[%clk 0:02:38.7]} 37. Kf1 {[%clk 0:02:44.8]} 37... d3 {[%clk 0:02:36.2]} 38.
Qd8+ {[%clk 0:02:42.2]} 38... Kg7 {[%clk 0:02:34.7]} 39. Qd7+ {[%clk 0:02:41]}
39... Kh6 {[%clk 0:02:32]} 40. Qd6 {[%clk 0:02:34.2]} 40... Qe2+ {[%clk
0:02:29.2]} 41. Kg1 {[%clk 0:02:32]} 41... d2 {[%clk 0:02:18.9]} 42. Qf4+ {[%clk
0:02:29.3]} 42... Kg7 {[%clk 0:02:17.7]} 43. Qc7+ {[%clk 0:02:26.3]} 43... Kf6
{[%clk 0:02:15.7]} 44. Qd6+ {[%clk 0:02:24.7]} 44... Kf5 {[%clk 0:02:10.7]} 45.
Qf8+ {[%clk 0:02:22.2]} 45... Kg5 {[%clk 0:02:05.6]} 46. Qd8+ {[%clk 0:02:20.6]}
46... Kh6 {[%clk 0:01:57.3]} 47. Qf8+ {[%clk 0:02:18.9]} 47... Kh5 {[%clk
0:01:53.5]} 48. Qc5+ {[%clk 0:02:05.8]} 48... g5 {[%clk 0:01:48.2]} 49. g4+
{[%clk 0:02:00.7]} 49... Kh4 {[%clk 0:01:41.3]} 0-1